[Event "Titled Tuesday Blitz August 1 Late 2023"]
[White "ATM622"]
[Black "Grigorov, Grigor"]
[BlackFideId "2907313"]
[WhiteElo "2519"]
[BlackElo "2790"]
[Result "0-1"]
[Round "2"]
[TimeControl "180+1"]
[Date "2023.08.01"]
[WhiteClock "0:01:26"]
[BlackClock "0:02:13"]
[Board "36"]

1. d4 {[%clk 0:02:55]}  Nf6 {[%clk 0:02:59]} 2. c4 {[%clk 0:02:54]}  e6 {[%clk 0:02:59]} 3. g3 {[%clk 0:02:54]}  c5 {[%clk 0:02:56]} 4. d5 {[%clk 0:02:53]}  exd5 {[%clk 0:02:56]} 5. cxd5 {[%clk 0:02:53]}  d6 {[%clk 0:02:56]} 6. Bg2 {[%clk 0:02:53]}  g6 {[%clk 0:02:57]} 7. Nf3 {[%clk 0:02:53]}  Bg7 {[%clk 0:02:57]} 8. O-O {[%clk 0:02:54]}  O-O {[%clk 0:02:56]} 9. Nc3 {[%clk 0:02:54]}  a6 {[%clk 0:02:54]} 10. a4 {[%clk 0:02:54]}  Nbd7 {[%clk 0:02:54]} 11. Bf4 {[%clk 0:02:52]}  Qe7 {[%clk 0:02:54]} 12. Nd2 {[%clk 0:02:51]}  Ng4 {[%clk 0:02:44]} 13. Nc4 {[%clk 0:02:48]}  Nge5 {[%clk 0:02:42]} 14. Ne4 {[%clk 0:02:46]}  Nxc4 {[%clk 0:02:41]} 15. Qc2 {[%clk 0:02:20]}  Nce5 {[%clk 0:02:40]} 16. Bg5 {[%clk 0:02:16]}  f6 {[%clk 0:02:38]} 17. Bf4 {[%clk 0:02:09]}  h6 {[%clk 0:02:35]} 18. Bh3 {[%clk 0:02:08]}  f5 {[%clk 0:02:32]} 19. Nc3 {[%clk 0:02:04]}  Nf6 {[%clk 0:02:27]} 20. a5 {[%clk 0:01:58]}  Bd7 {[%clk 0:02:23]} 21. e4 {[%clk 0:01:53]}  Nf3+ {[%clk 0:02:17]} 22. Kg2 {[%clk 0:01:51]}  Nd4 {[%clk 0:02:14]} 23. Qd1 {[%clk 0:01:29]}  g5 {[%clk 0:02:14]} 24. Be3 {[%clk 0:01:26]}  g4 {[%clk 0:02:13]} 0-1


[Site "https://www.chess.com"]

[Event "Titled Tuesday Blitz August 1 Late 2023"]
[White "Cremisi, Daniel"]
[Black "Mekhitarian, Krikor Sevag"]
[WhiteFideId "2089882"]
[BlackFideId "2107660"]
[WhiteElo "2518"]
[BlackElo "2773"]
[Result "1-0"]
[Round "2"]
[TimeControl "180+1"]
[Date "2023.08.01"]
[WhiteClock "0:00:31"]
[BlackClock "0:00:09"]
[Board "40"]

1. d4 {[%clk 0:03:00]}  Nf6 {[%clk 0:02:59]} 2. c4 {[%clk 0:03:00]}  g6 {[%clk 0:03:00]} 3. Nc3 {[%clk 0:03:00]}  d5 {[%clk 0:03:01]} 4. cxd5 {[%clk 0:03:00]}  Nxd5 {[%clk 0:03:01]} 5. e4 {[%clk 0:03:00]}  Nxc3 {[%clk 0:03:00]} 6. bxc3 {[%clk 0:03:01]}  Bg7 {[%clk 0:03:01]} 7. Be3 {[%clk 0:03:02]}  c5 {[%clk 0:03:01]} 8. Rc1 {[%clk 0:03:02]}  Qa5 {[%clk 0:03:01]} 9. Qd2 {[%clk 0:03:02]}  O-O {[%clk 0:02:52]} 10. Nf3 {[%clk 0:03:02]}  b6 {[%clk 0:02:34]} 11. d5 {[%clk 0:03:00]}  e6 {[%clk 0:02:31]} 12. c4 {[%clk 0:02:59]}  Qxd2+ {[%clk 0:02:30]} 13. Nxd2 {[%clk 0:02:58]}  Nd7 {[%clk 0:02:30]} 14. Be2 {[%clk 0:02:58]}  Re8 {[%clk 0:02:24]} 15. O-O {[%clk 0:02:57]}  Ba6 {[%clk 0:02:24]} 16. Rfe1 {[%clk 0:02:56]}  Rad8 {[%clk 0:02:17]} 17. a4 {[%clk 0:02:47]}  Bb2 {[%clk 0:02:14]} 18. Rb1 {[%clk 0:02:45]}  Bc3 {[%clk 0:02:13]} 19. Rbc1 {[%clk 0:02:26]}  Bb4 {[%clk 0:02:00]} 20. Red1 {[%clk 0:02:18]}  exd5 {[%clk 0:01:59]} 21. exd5 {[%clk 0:02:16]}  Nf6 {[%clk 0:01:49]} 22. Kf1 {[%clk 0:02:14]}  h5 {[%clk 0:01:42]} 23. Bg5 {[%clk 0:02:13]}  Kg7 {[%clk 0:01:42]} 24. Bf3 {[%clk 0:02:11]}  Rd6 {[%clk 0:01:25]} 25. h3 {[%clk 0:01:57]}  Rd7 {[%clk 0:01:13]} 26. Bxf6+ {[%clk 0:01:53]}  Kxf6 {[%clk 0:01:13]} 27. Ne4+ {[%clk 0:01:38]}  Kg7 {[%clk 0:01:12]} 28. g4 {[%clk 0:01:35]}  hxg4 {[%clk 0:01:09]} 29. hxg4 {[%clk 0:01:36]}  f6 {[%clk 0:01:03]} 30. g5 {[%clk 0:01:34]}  fxg5 {[%clk 0:00:59]} 31. Nxg5 {[%clk 0:01:34]}  Re5 {[%clk 0:00:53]} 32. Ne6+ {[%clk 0:01:30]}  Kf6 {[%clk 0:00:54]} 33. Bg4 {[%clk 0:01:30]}  Rh7 {[%clk 0:00:53]} 34. Kg2 {[%clk 0:01:16]}  Bc8 {[%clk 0:00:53]} 35. Rd3 {[%clk 0:01:13]}  Bd7 {[%clk 0:00:50]} 36. Rf3+ {[%clk 0:01:13]}  Ke7 {[%clk 0:00:51]} 37. Rd1 {[%clk 0:00:49]}  Kd6 {[%clk 0:00:48]} 38. Rf6 {[%clk 0:00:49]}  Ke7 {[%clk 0:00:40]} 39. Rxg6 {[%clk 0:00:48]}  Be8 {[%clk 0:00:34]} 40. Rg8 {[%clk 0:00:45]}  Bd7 {[%clk 0:00:17]} 41. f4 {[%clk 0:00:39]}  Reh5 {[%clk 0:00:11]} 42. d6+ {[%clk 0:00:35]}  Kf7 {[%clk 0:00:11]} 43. Rf8+ {[%clk 0:00:33]}  Kg6 {[%clk 0:00:12]} 44. f5+ {[%clk 0:00:31]}  Rxf5 {[%clk 0:00:09]} 45. Bxf5+ {[%clk 0:00:31]} 1-0


[Site "https://www.chess.com"]

[Event "Titled Tuesday Blitz August 1 Late 2023"]
[White "Pakleza, Zbigniew"]
[Black "Kanakaris, Georgios"]
[WhiteFideId "1119290"]
[BlackFideId "4209460"]
[WhiteElo "2761"]
[BlackElo "2517"]
[Result "1-0"]
[Round "2"]
[TimeControl "180+1"]
[Date "2023.08.01"]
[WhiteClock "0:00:06"]
[BlackClock "0:00:01"]
[Board "43"]

1. d4 {[%clk 0:03:00]}  Nf6 {[%clk 0:02:59]} 2. Nf3 {[%clk 0:03:01]}  g6 {[%clk 0:02:59]} 3. Bf4 {[%clk 0:03:01]}  Bg7 {[%clk 0:02:59]} 4. e3 {[%clk 0:03:02]}  O-O {[%clk 0:02:59]} 5. Be2 {[%clk 0:03:03]}  d6 {[%clk 0:02:59]} 6. h3 {[%clk 0:03:03]}  b6 {[%clk 0:02:59]} 7. O-O {[%clk 0:03:04]}  Bb7 {[%clk 0:03:00]} 8. c3 {[%clk 0:03:04]}  c5 {[%clk 0:03:00]} 9. Nbd2 {[%clk 0:03:05]}  Nbd7 {[%clk 0:03:00]} 10. a4 {[%clk 0:03:05]}  a6 {[%clk 0:03:01]} 11. Bh2 {[%clk 0:03:06]}  Qc7 {[%clk 0:02:59]} 12. Bd3 {[%clk 0:03:01]}  e5 {[%clk 0:02:30]} 13. dxe5 {[%clk 0:02:59]}  dxe5 {[%clk 0:02:30]} 14. e4 {[%clk 0:02:48]}  Nh5 {[%clk 0:02:27]} 15. Re1 {[%clk 0:02:42]}  Nf4 {[%clk 0:02:24]} 16. Bf1 {[%clk 0:02:34]}  Rfd8 {[%clk 0:02:24]} 17. Qb3 {[%clk 0:02:22]}  Rab8 {[%clk 0:02:01]} 18. Bg3 {[%clk 0:01:18]}  h6 {[%clk 0:01:55]} 19. Nc4 {[%clk 0:01:10]}  b5 {[%clk 0:01:27]} 20. axb5 {[%clk 0:01:11]}  axb5 {[%clk 0:01:27]} 21. Na3 {[%clk 0:01:01]}  b4 {[%clk 0:01:09]} 22. Nc4 {[%clk 0:00:46]}  Bc6 {[%clk 0:01:00]} 23. Na5 {[%clk 0:00:36]}  Ba8 {[%clk 0:00:56]} 24. Nc4 {[%clk 0:00:24]}  Nf8 {[%clk 0:00:40]} 25. Ra6 {[%clk 0:00:13]}  N8e6 {[%clk 0:00:32]} 26. Qc2 {[%clk 0:00:13]}  bxc3 {[%clk 0:00:30]} 27. bxc3 {[%clk 0:00:13]}  Qb7 {[%clk 0:00:20]} 28. Ra2 {[%clk 0:00:07]}  Qc7 {[%clk 0:00:17]} 29. Rea1 {[%clk 0:00:06]}  Bc6 {[%clk 0:00:17]} 30. Ne3 {[%clk 0:00:05]}  Qb7 {[%clk 0:00:11]} 31. Nd2 {[%clk 0:00:03]}  Ra8 {[%clk 0:00:09]} 32. Bc4 {[%clk 0:00:02]}  Rxa2 {[%clk 0:00:09]} 33. Qxa2 {[%clk 0:00:03]}  Qd7 {[%clk 0:00:08]} 34. Bxf4 {[%clk 0:00:01]}  Qxd2 {[%clk 0:00:07]} 35. Nd5 {[%clk 0:00:02]}  Qxa2 {[%clk 0:00:06]} 36. Bxa2 {[%clk 0:00:01]}  exf4 {[%clk 0:00:07]} 37. Ne7+ {[%clk 0:00:02]}  Kh7 {[%clk 0:00:06]} 38. Nxc6 {[%clk 0:00:02]}  Bxc3 {[%clk 0:00:06]} 39. Bxe6 {[%clk 0:00:02]}  Bxa1 {[%clk 0:00:05]} 40. Nxd8 {[%clk 0:00:02]}  fxe6 {[%clk 0:00:06]} 41. Nxe6 {[%clk 0:00:03]}  c4 {[%clk 0:00:06]} 42. Nxf4 {[%clk 0:00:03]}  Be5 {[%clk 0:00:05]} 43. Ne2 {[%clk 0:00:03]}  c3 {[%clk 0:00:06]} 44. f4 {[%clk 0:00:03]}  Bd6 {[%clk 0:00:05]} 45. Kf2 {[%clk 0:00:03]}  c2 {[%clk 0:00:05]} 46. Ke3 {[%clk 0:00:04]}  Ba3 {[%clk 0:00:05]} 47. Kd2 {[%clk 0:00:04]}  c1=Q+ {[%clk 0:00:04]} 48. Nxc1 {[%clk 0:00:04]}  g5 {[%clk 0:00:04]} 49. f5 {[%clk 0:00:04]}  h5 {[%clk 0:00:04]} 50. Nd3 {[%clk 0:00:04]}  Kh6 {[%clk 0:00:04]} 51. g4 {[%clk 0:00:05]}  Kg7 {[%clk 0:00:03]} 52. e5 {[%clk 0:00:05]}  hxg4 {[%clk 0:00:04]} 53. hxg4 {[%clk 0:00:05]}  Bc5 {[%clk 0:00:01]} 54. Nxc5 {[%clk 0:00:06]} 1-0


[Site "https://www.chess.com"]

[Event "Titled Tuesday Blitz August 1 Late 2023"]
[White "NigelDwarf"]
[Black "Rozen, Eytan"]
[BlackFideId "2816750"]
[WhiteElo "2516"]
[BlackElo "2754"]
[Result "0-1"]
[Round "2"]
[TimeControl "180+1"]
[Date "2023.08.01"]
[WhiteClock "0:00:07"]
[BlackClock "0:00:09"]
[Board "44"]

1. Nf3 {[%clk 0:03:00]}  g6 {[%clk 0:02:54]} 2. d4 {[%clk 0:02:56]}  Bg7 {[%clk 0:02:54]} 3. c4 {[%clk 0:02:55]}  Nf6 {[%clk 0:02:54]} 4. Nc3 {[%clk 0:02:55]}  O-O {[%clk 0:02:54]} 5. e4 {[%clk 0:02:55]}  d6 {[%clk 0:02:55]} 6. h3 {[%clk 0:02:54]}  Nbd7 {[%clk 0:02:54]} 7. Be3 {[%clk 0:02:52]}  e5 {[%clk 0:02:52]} 8. d5 {[%clk 0:02:51]}  Nh5 {[%clk 0:02:45]} 9. g3 {[%clk 0:02:48]}  Nc5 {[%clk 0:02:32]} 10. b4 {[%clk 0:02:39]}  Nxe4 {[%clk 0:02:22]} 11. Nxe4 {[%clk 0:02:38]}  f5 {[%clk 0:02:23]} 12. Neg5 {[%clk 0:02:20]}  f4 {[%clk 0:02:05]} 13. gxf4 {[%clk 0:02:12]}  e4 {[%clk 0:01:58]} 14. Nd4 {[%clk 0:01:52]}  Nxf4 {[%clk 0:01:57]} 15. Bxf4 {[%clk 0:01:47]}  Rxf4 {[%clk 0:01:55]} 16. Nge6 {[%clk 0:01:39]}  Bxe6 {[%clk 0:01:49]} 17. Nxe6 {[%clk 0:01:38]}  Qf6 {[%clk 0:01:07]} 18. Nxf4 {[%clk 0:00:48]}  Qc3+ {[%clk 0:00:53]} 19. Ke2 {[%clk 0:00:34]}  Qf3+ {[%clk 0:00:48]} 20. Kd2 {[%clk 0:00:31]}  Qxf4+ {[%clk 0:00:44]} 21. Kc2 {[%clk 0:00:30]}  Qxf2+ {[%clk 0:00:27]} 22. Qe2 {[%clk 0:00:29]}  Qd4 {[%clk 0:00:27]} 23. Rb1 {[%clk 0:00:22]}  Rf8 {[%clk 0:00:27]} 24. Rh2 {[%clk 0:00:17]}  Rf3 {[%clk 0:00:24]} 25. Qd2 {[%clk 0:00:13]}  Rc3+ {[%clk 0:00:17]} 26. Kd1 {[%clk 0:00:12]}  Qg1 {[%clk 0:00:17]} 27. Qf2 {[%clk 0:00:09]}  Qg5 {[%clk 0:00:16]} 28. Qd2 {[%clk 0:00:08]}  Qe5 {[%clk 0:00:14]} 29. Rf2 {[%clk 0:00:07]}  e3 {[%clk 0:00:14]} 30. Re2 {[%clk 0:00:07]}  Qf5 {[%clk 0:00:10]} 31. Qe1 {[%clk 0:00:07]}  Qxb1# {[%clk 0:00:09]} 0-1


[Site "https://www.chess.com"]

[Event "Titled Tuesday Blitz August 1 Late 2023"]
[White "Rottenwohrer Suarez, Juan"]
[Black "Golubka, Petro"]
[WhiteFideId "32068182"]
[BlackFideId "14114224"]
[WhiteElo "2511"]
[BlackElo "2752"]
[Result "1/2-1/2"]
[Round "2"]
[TimeControl "180+1"]
[Date "2023.08.01"]
[WhiteClock "0:00:04"]
[BlackClock "0:00:30"]
[Board "46"]

1. Nf3 {[%clk 0:03:00]}  Nf6 {[%clk 0:02:56]} 2. e3 {[%clk 0:02:59]}  e6 {[%clk 0:02:57]} 3. c4 {[%clk 0:02:57]}  b6 {[%clk 0:02:58]} 4. b3 {[%clk 0:02:54]}  Bb7 {[%clk 0:02:57]} 5. Bb2 {[%clk 0:02:53]}  Be7 {[%clk 0:02:57]} 6. Be2 {[%clk 0:02:54]}  O-O {[%clk 0:02:57]} 7. O-O {[%clk 0:02:55]}  d5 {[%clk 0:02:57]} 8. cxd5 {[%clk 0:02:48]}  exd5 {[%clk 0:02:58]} 9. Nc3 {[%clk 0:02:38]}  Na6 {[%clk 0:02:58]} 10. Rc1 {[%clk 0:02:34]}  c5 {[%clk 0:02:58]} 11. d4 {[%clk 0:02:34]}  Ne4 {[%clk 0:02:57]} 12. dxc5 {[%clk 0:02:32]}  Naxc5 {[%clk 0:02:57]} 13. Nb5 {[%clk 0:02:16]}  a6 {[%clk 0:02:50]} 14. Nbd4 {[%clk 0:02:16]}  Bf6 {[%clk 0:02:50]} 15. Qc2 {[%clk 0:02:13]}  Rc8 {[%clk 0:02:50]} 16. Qb1 {[%clk 0:02:13]}  Re8 {[%clk 0:02:49]} 17. Nf5 {[%clk 0:02:08]}  Qd7 {[%clk 0:02:39]} 18. Bxf6 {[%clk 0:02:07]}  Qxf5 {[%clk 0:02:36]} 19. Ba1 {[%clk 0:01:58]}  Qg6 {[%clk 0:02:35]} 20. Rfd1 {[%clk 0:01:54]}  Qh6 {[%clk 0:02:28]} 21. Bd4 {[%clk 0:01:46]}  a5 {[%clk 0:02:24]} 22. Qb2 {[%clk 0:01:46]}  Ba6 {[%clk 0:02:18]} 23. Bxa6 {[%clk 0:01:44]}  Nxa6 {[%clk 0:02:18]} 24. Rxc8 {[%clk 0:01:43]}  Rxc8 {[%clk 0:02:19]} 25. Rc1 {[%clk 0:01:43]}  Nac5 {[%clk 0:02:17]} 26. b4 {[%clk 0:01:35]}  axb4 {[%clk 0:02:16]} 27. Qxb4 {[%clk 0:01:36]}  Ra8 {[%clk 0:02:11]} 28. Rc2 {[%clk 0:01:19]}  Qe6 {[%clk 0:02:07]} 29. h3 {[%clk 0:01:16]}  h6 {[%clk 0:02:07]} 30. Qb5 {[%clk 0:01:03]}  Ra5 {[%clk 0:02:01]} 31. Qb2 {[%clk 0:01:03]}  Qg6 {[%clk 0:01:56]} 32. Ne5 {[%clk 0:01:03]}  Qe6 {[%clk 0:01:54]} 33. Ng4 {[%clk 0:01:00]}  f6 {[%clk 0:01:50]} 34. Qb4 {[%clk 0:00:50]}  Ra4 {[%clk 0:01:46]} 35. Qb5 {[%clk 0:00:47]}  Ra5 {[%clk 0:01:44]} 36. Qb4 {[%clk 0:00:46]}  h5 {[%clk 0:01:44]} 37. Nh2 {[%clk 0:00:46]}  Ra4 {[%clk 0:01:45]} 38. Qb5 {[%clk 0:00:46]}  Ra5 {[%clk 0:01:45]} 39. Qb4 {[%clk 0:00:46]}  Ra4 {[%clk 0:01:29]} 40. Qb5 {[%clk 0:00:46]}  Rc4 {[%clk 0:01:27]} 41. Qb1 {[%clk 0:00:34]}  Qc6 {[%clk 0:01:15]} 42. Bxc5 {[%clk 0:00:28]}  Nc3 {[%clk 0:00:59]} 43. Qxb6 {[%clk 0:00:12]}  Qxc5 {[%clk 0:00:58]} 44. Qxc5 {[%clk 0:00:13]}  Rxc5 {[%clk 0:00:59]} 45. Nf3 {[%clk 0:00:12]}  Rc4 {[%clk 0:00:59]} 46. Nd4 {[%clk 0:00:12]}  Kf7 {[%clk 0:00:55]} 47. g4 {[%clk 0:00:12]}  hxg4 {[%clk 0:00:54]} 48. hxg4 {[%clk 0:00:13]}  g6 {[%clk 0:00:55]} 49. Kg2 {[%clk 0:00:13]}  Ke7 {[%clk 0:00:53]} 50. Rb2 {[%clk 0:00:08]}  Ra4 {[%clk 0:00:49]} 51. Rb7+ {[%clk 0:00:08]}  Ke8 {[%clk 0:00:49]} 52. Rb6 {[%clk 0:00:08]}  Ke7 {[%clk 0:00:46]} 53. g5 {[%clk 0:00:07]}  fxg5 {[%clk 0:00:46]} 54. Rxg6 {[%clk 0:00:06]}  Ne4 {[%clk 0:00:45]} 55. Rg7+ {[%clk 0:00:02]}  Kf6 {[%clk 0:00:41]} 56. Rc7 {[%clk 0:00:03]}  Rxa2 {[%clk 0:00:40]} 57. Rc2 {[%clk 0:00:04]}  Ra6 {[%clk 0:00:34]} 58. Rc6+ {[%clk 0:00:04]}  Rxc6 {[%clk 0:00:34]} 59. Nxc6 {[%clk 0:00:05]}  Ke6 {[%clk 0:00:33]} 60. Nd4+ {[%clk 0:00:05]}  Ke5 {[%clk 0:00:33]} 61. Kf3 {[%clk 0:00:06]}  Nf6 {[%clk 0:00:33]} 62. Nc6+ {[%clk 0:00:04]}  Kd6 {[%clk 0:00:30]} 63. Nd4 {[%clk 0:00:05]}  Ne4 {[%clk 0:00:28]} 64. Kg4 {[%clk 0:00:04]}  Nxf2+ {[%clk 0:00:28]} 65. Kxg5 {[%clk 0:00:04]}  Nd1 {[%clk 0:00:29]} 66. Kf4 {[%clk 0:00:04]}  Kc5 {[%clk 0:00:29]} 67. Ne6+ {[%clk 0:00:04]}  Kc4 {[%clk 0:00:29]} 68. Nc7 {[%clk 0:00:04]}  Nc3 {[%clk 0:00:28]} 69. Nxd5 {[%clk 0:00:04]}  Nxd5+ {[%clk 0:00:29]} 70. Kf3 {[%clk 0:00:04]}  Nxe3 {[%clk 0:00:30]} 1/2-1/2


[Site "https://www.chess.com"]

[Event "Titled Tuesday Blitz August 1 Late 2023"]
[White "Volovich, Vasily"]
[Black "Mattheii"]
[WhiteFideId "34169676"]
[WhiteElo "2744"]
[BlackElo "2510"]
[Result "1-0"]
[Round "2"]
[TimeControl "180+1"]
[Date "2023.08.01"]
[WhiteClock "0:00:07"]
[BlackClock "0:00:00"]
[Board "47"]

1. e4 {[%clk 0:03:00]}  c5 {[%clk 0:02:59]} 2. Nf3 {[%clk 0:02:58]}  Nc6 {[%clk 0:02:54]} 3. Bb5 {[%clk 0:02:57]}  g6 {[%clk 0:02:54]} 4. Bxc6 {[%clk 0:02:57]}  dxc6 {[%clk 0:02:55]} 5. O-O {[%clk 0:02:57]}  Bg7 {[%clk 0:02:55]} 6. d3 {[%clk 0:02:56]}  e5 {[%clk 0:02:51]} 7. Nc3 {[%clk 0:02:55]}  Qe7 {[%clk 0:02:50]} 8. h3 {[%clk 0:02:54]}  Nf6 {[%clk 0:02:51]} 9. Be3 {[%clk 0:02:53]}  Nd7 {[%clk 0:02:51]} 10. Qd2 {[%clk 0:02:53]}  Nf8 {[%clk 0:02:49]} 11. Ne2 {[%clk 0:02:43]}  Ne6 {[%clk 0:02:48]} 12. Ng5 {[%clk 0:02:41]}  Nd4 {[%clk 0:02:21]} 13. Bxd4 {[%clk 0:02:35]}  cxd4 {[%clk 0:02:20]} 14. f4 {[%clk 0:02:35]}  h6 {[%clk 0:01:52]} 15. Nf3 {[%clk 0:02:34]}  exf4 {[%clk 0:01:51]} 16. Qxf4 {[%clk 0:02:29]}  g5 {[%clk 0:01:34]} 17. Qg3 {[%clk 0:02:23]}  Qc5 {[%clk 0:01:26]} 18. Rac1 {[%clk 0:02:06]}  O-O {[%clk 0:01:14]} 19. Qf2 {[%clk 0:02:04]}  f5 {[%clk 0:01:09]} 20. exf5 {[%clk 0:02:00]}  Bxf5 {[%clk 0:01:08]} 21. Nexd4 {[%clk 0:01:50]}  Bd7 {[%clk 0:00:42]} 22. c3 {[%clk 0:01:48]}  Qd5 {[%clk 0:00:35]} 23. a3 {[%clk 0:01:38]}  c5 {[%clk 0:00:35]} 24. Ne2 {[%clk 0:01:33]}  Qxd3 {[%clk 0:00:31]} 25. Rcd1 {[%clk 0:01:23]}  Qf5 {[%clk 0:00:31]} 26. Ng3 {[%clk 0:01:22]}  Qf7 {[%clk 0:00:32]} 27. Qxc5 {[%clk 0:01:18]}  Bc6 {[%clk 0:00:21]} 28. Ne5 {[%clk 0:01:11]}  Qe6 {[%clk 0:00:17]} 29. Nxc6 {[%clk 0:01:10]}  bxc6 {[%clk 0:00:16]} 30. Nf5 {[%clk 0:01:02]}  Rae8 {[%clk 0:00:07]} 31. Rd6 {[%clk 0:00:51]}  Qe5 {[%clk 0:00:02]} 32. Qxe5 {[%clk 0:00:30]}  Bxe5 {[%clk 0:00:03]} 33. Rg6+ {[%clk 0:00:28]}  Kh7 {[%clk 0:00:02]} 34. Rxh6+ {[%clk 0:00:28]}  Kg8 {[%clk 0:00:03]} 35. Rxc6 {[%clk 0:00:23]}  Bf4 {[%clk 0:00:03]} 36. g4 {[%clk 0:00:20]}  Re2 {[%clk 0:00:03]} 37. Rg6+ {[%clk 0:00:14]}  Kh7 {[%clk 0:00:02]} 38. Rg7+ {[%clk 0:00:15]}  Kh8 {[%clk 0:00:02]} 39. Rb7 {[%clk 0:00:09]}  Rd8 {[%clk 0:00:00]} 40. Re7 {[%clk 0:00:07]} 1-0


[Site "https://www.chess.com"]

[Event "Titled Tuesday Blitz August 1 Late 2023"]
[White "Bakalchuk, Johnatan"]
[Black "Papayan, Oleg"]
[WhiteFideId "2810301"]
[BlackFideId "4193911"]
[WhiteElo "2739"]
[BlackElo "2508"]
[Result "1-0"]
[Round "2"]
[TimeControl "180+1"]
[Date "2023.08.01"]
[WhiteClock "0:00:09"]
[BlackClock "0:00:00"]
[Board "49"]

1. e4 {[%clk 0:03:00]}  d5 {[%clk 0:02:59]} 2. exd5 {[%clk 0:03:00]}  Qxd5 {[%clk 0:03:00]} 3. Nc3 {[%clk 0:03:01]}  Qd8 {[%clk 0:03:01]} 4. d4 {[%clk 0:03:01]}  c6 {[%clk 0:02:59]} 5. Nf3 {[%clk 0:03:01]}  Bf5 {[%clk 0:03:00]} 6. Bc4 {[%clk 0:03:00]}  e6 {[%clk 0:03:00]} 7. Qe2 {[%clk 0:02:55]}  Nf6 {[%clk 0:02:57]} 8. Bd2 {[%clk 0:02:53]}  Be7 {[%clk 0:02:48]} 9. O-O-O {[%clk 0:02:53]}  Nbd7 {[%clk 0:02:47]} 10. Kb1 {[%clk 0:02:51]}  Nb6 {[%clk 0:02:44]} 11. Bb3 {[%clk 0:02:51]}  a5 {[%clk 0:02:44]} 12. a3 {[%clk 0:02:51]}  a4 {[%clk 0:02:44]} 13. Ba2 {[%clk 0:02:52]}  Nbd5 {[%clk 0:02:38]} 14. Ne5 {[%clk 0:02:48]}  Nxc3+ {[%clk 0:02:35]} 15. Bxc3 {[%clk 0:02:49]}  Nd5 {[%clk 0:02:24]} 16. Bd2 {[%clk 0:02:49]}  Qb6 {[%clk 0:02:18]} 17. g4 {[%clk 0:02:39]}  Bg6 {[%clk 0:02:15]} 18. Nc4 {[%clk 0:01:11]}  Qxd4 {[%clk 0:01:52]} 19. Be3 {[%clk 0:00:55]}  Qf6 {[%clk 0:01:23]} 20. Bd4 {[%clk 0:00:54]}  Qh4 {[%clk 0:01:08]} 21. Bxg7 {[%clk 0:00:51]}  Rg8 {[%clk 0:01:09]} 22. Be5 {[%clk 0:00:51]}  h5 {[%clk 0:00:43]} 23. Rxd5 {[%clk 0:00:50]}  cxd5 {[%clk 0:00:38]} 24. Nb6 {[%clk 0:00:50]}  Rd8 {[%clk 0:00:27]} 25. Qb5+ {[%clk 0:00:48]}  Kf8 {[%clk 0:00:28]} 26. Nd7+ {[%clk 0:00:47]}  Rxd7 {[%clk 0:00:29]} 27. Qxd7 {[%clk 0:00:48]}  hxg4 {[%clk 0:00:13]} 28. Qxa4 {[%clk 0:00:32]}  Be4 {[%clk 0:00:10]} 29. Rc1 {[%clk 0:00:21]}  f6 {[%clk 0:00:11]} 30. Bg3 {[%clk 0:00:20]}  Qh7 {[%clk 0:00:10]} 31. Qd7 {[%clk 0:00:19]}  Kf7 {[%clk 0:00:08]} 32. Qxb7 {[%clk 0:00:19]}  f5 {[%clk 0:00:06]} 33. Be5 {[%clk 0:00:17]}  Re8 {[%clk 0:00:02]} 34. a4 {[%clk 0:00:18]}  Qg8 {[%clk 0:00:02]} 35. a5 {[%clk 0:00:18]}  Kg6 {[%clk 0:00:03]} 36. a6 {[%clk 0:00:18]}  Bf6 {[%clk 0:00:03]} 37. Bxf6 {[%clk 0:00:17]}  Kxf6 {[%clk 0:00:04]} 38. a7 {[%clk 0:00:16]}  d4 {[%clk 0:00:05]} 39. Qb6 {[%clk 0:00:14]}  Rd8 {[%clk 0:00:02]} 40. Rd1 {[%clk 0:00:12]}  Kg5 {[%clk 0:00:02]} 41. Rxd4 {[%clk 0:00:11]}  Rc8 {[%clk 0:00:02]} 42. Bxe6 {[%clk 0:00:08]}  Bxc2+ {[%clk 0:00:00]} 43. Ka2 {[%clk 0:00:09]} 1-0


[Site "https://www.chess.com"]

[Event "Titled Tuesday Blitz August 1 Late 2023"]
[White "Kanyamarala, Tarun"]
[Black "Yanchenko, Roman"]
[WhiteFideId "45004714"]
[BlackFideId "4137329"]
[WhiteElo "2506"]
[BlackElo "2727"]
[Result "0-1"]
[Round "2"]
[TimeControl "180+1"]
[Date "2023.08.01"]
[WhiteClock "0:01:42"]
[BlackClock "0:00:55"]
[Board "50"]

1. d4 {[%clk 0:03:00]}  d5 {[%clk 0:03:00]} 2. Nf3 {[%clk 0:03:01]}  Nf6 {[%clk 0:03:00]} 3. Bf4 {[%clk 0:03:02]}  Bf5 {[%clk 0:02:59]} 4. c3 {[%clk 0:03:01]}  e6 {[%clk 0:03:00]} 5. Qb3 {[%clk 0:03:01]}  Qc8 {[%clk 0:02:59]} 6. Nbd2 {[%clk 0:02:59]}  c5 {[%clk 0:02:56]} 7. e3 {[%clk 0:02:59]}  Nc6 {[%clk 0:02:56]} 8. Be2 {[%clk 0:02:58]}  Be7 {[%clk 0:02:45]} 9. h3 {[%clk 0:02:58]}  O-O {[%clk 0:02:45]} 10. O-O {[%clk 0:02:59]}  h6 {[%clk 0:02:41]} 11. Rfc1 {[%clk 0:02:58]}  c4 {[%clk 0:02:41]} 12. Qd1 {[%clk 0:02:58]}  b5 {[%clk 0:02:41]} 13. b3 {[%clk 0:02:55]}  Ba3 {[%clk 0:02:37]} 14. bxc4 {[%clk 0:02:49]}  Bxc1 {[%clk 0:02:34]} 15. Rxc1 {[%clk 0:02:44]}  bxc4 {[%clk 0:02:34]} 16. g4 {[%clk 0:02:43]}  Bh7 {[%clk 0:02:21]} 17. g5 {[%clk 0:02:42]}  hxg5 {[%clk 0:02:21]} 18. Nxg5 {[%clk 0:02:41]}  Bg6 {[%clk 0:02:22]} 19. Ndf3 {[%clk 0:02:39]}  Ne4 {[%clk 0:02:06]} 20. Nh4 {[%clk 0:02:34]}  Nxg5 {[%clk 0:02:06]} 21. Bxg5 {[%clk 0:02:34]}  Be4 {[%clk 0:02:03]} 22. f3 {[%clk 0:02:33]}  Bh7 {[%clk 0:02:03]} 23. e4 {[%clk 0:02:31]}  f6 {[%clk 0:01:58]} 24. Be3 {[%clk 0:02:29]}  Qc7 {[%clk 0:01:57]} 25. Kf2 {[%clk 0:02:21]}  Rab8 {[%clk 0:01:36]} 26. Qd2 {[%clk 0:02:20]}  dxe4 {[%clk 0:01:18]} 27. Bxc4 {[%clk 0:02:18]}  Qh2+ {[%clk 0:01:17]} 28. Ng2 {[%clk 0:02:17]}  exf3 {[%clk 0:01:17]} 29. Bxe6+ {[%clk 0:02:10]}  Kh8 {[%clk 0:01:14]} 30. Kxf3 {[%clk 0:02:10]}  Qd6 {[%clk 0:01:06]} 31. d5 {[%clk 0:02:04]}  Ne5+ {[%clk 0:01:01]} 32. Kf2 {[%clk 0:02:04]}  Rb2 {[%clk 0:01:00]} 33. Qxb2 {[%clk 0:01:59]}  Nd3+ {[%clk 0:01:00]} 34. Kg1 {[%clk 0:01:54]}  Nxb2 {[%clk 0:01:01]} 35. c4 {[%clk 0:01:53]}  Nd3 {[%clk 0:01:00]} 36. c5 {[%clk 0:01:53]}  Qg3 {[%clk 0:00:59]} 37. Rc4 {[%clk 0:01:47]}  Ne1 {[%clk 0:00:55]} 38. Rg4 {[%clk 0:01:46]}  Nf3+ {[%clk 0:00:55]} 39. Kf1 {[%clk 0:01:42]}  Bd3# {[%clk 0:00:55]} 0-1


[Site "https://www.chess.com"]